bitfinex-derivatives/quotes_SOLF0:USTF0_20250903
["timestamp","ask_amount","ask_price","bid_price","bid_amount"]
[1756863928805,7.61,208.29,208.23,1.62579393]
[1756863929700,7.61,208.29,208.21,1.62579393]
[1756863930206,7.61,208.25,208.19,1.62579393]
[1756863932813,7.61,208.25,208.21,1.62579393]
[1756863933110,7.61,208.27,208.21,1.62579393]
[1756863934512,7.61,208.27,208.23,3.55579393]
[1756863934806,7.61,208.3,208.23,3.55579393]
[1756863935017,7.61,208.3,208.23,1.62579393]
[1756863935210,7.61,208.28,208.21,1.62579393]
[1756863935411,7.61,208.28,208.18,1.93]
[1756863935614,7.61,208.28,208.2,1.62579393]
[1756863936406,7.61,208.28,208.18,1.93]
[1756863936612,7.61,208.26,208.2,1.62579393]
[1756863939511,6.98825336,208.3,208.22,1.62579393]
[1756863939716,7.61,208.25,208.18,1.62579393]
[1756863941521,7.26,208.23,208.16,1.62579393]
[1756863942620,1.62579393,208.22,208.14,1.62579393]
[1756863942920,7.26,208.21,208.14,1.62579393]
[1756863944917,7.26,208.21,208.14,1.62579393]
[1756863945521,7.26,208.19,208.12,1.62579393]
[1756863945825,5.36245943,208.24,208.12,1.62579393]
[1756863945826,7.26,208.17,208.12,1.62579393]
[1756863946117,1.62579393,208.18,208.12,1.62579393]
[1756863946315,7.26,208.17,208.12,1.62579393]
[1756863946523,1.62579393,208.18,208.12,1.62579393]
[1756863947022,7.26,208.17,208.12,1.62579393]
[1756863947218,1.62579393,208.18,208.12,1.62579393]
[1756863947423,7.26,208.17,208.12,1.62579393]
[1756863947815,8.88579393,208.18,208.12,1.62579393]
[1756863948018,7.26,208.18,208.12,1.62579393]
[1756863951226,7.26,208.18,208.14,3.53579393]
[1756863951822,7.26,208.18,208.07,4.325]
[1756863952024,12.62245943,208.21,208.15,1.62579393]
[1756863952329,7.26,208.21,208.15,1.62579393]
[1756863953824,7.26,208.21,208.14,1.91]
[1756863954023,7.26,208.21,208.14,3.53579393]
[1756863955233,7.26,208.21,208.09,4.3247]
[1756863955234,7.26,208.23,208.16,3.53579393]
[1756863956527,5.36245943,208.24,208.18,1.62579393]
[1756863956929,12.62245943,208.24,208.18,1.62579393]
[1756863960633,7.26,208.24,208.18,1.62579393]
[1756863961731,7.26,208.24,208.22,1.62579393]
[1756863962029,7.26,208.27,208.23,1.91]
[1756863962330,7.26,208.29,208.25,3.53579393]
[1756863962528,7.26,208.29,208.27,1.62579393]
[1756863963234,7.26,208.31,208.27,3.53579393]
[1756863963434,7.26,208.31,208.29,1.62579393]
[1756863963930,7.26,208.32,208.29,1.62579393]
[1756863964129,7.26,208.32,208.31,1.62579393]
[1756863965330,5.36245943,208.35,208.29,1.62579393]
[1756863965534,7.26,208.34,208.29,1.62579393]
[1756863965730,12.62245943,208.34,208.27,1.62579393]
[1756863966130,5.36245943,208.33,208.27,1.62579393]
[1756863966324,12.62245943,208.32,208.25,1.62579393]
[1756863966527,7.26,208.32,208.25,1.62579393]
[1756863967739,5.36245943,208.33,208.27,1.62579393]
[1756863968032,5.36245943,208.34,208.29,1.62579393]
[1756863968336,5.36245943,208.34,208.2,6.0]
[1756863968337,7.26,208.33,208.31,1.62579393]
[1756863968737,5.36245943,208.36,208.31,1.62579393]
[1756863968934,7.26,208.35,208.33,1.62579393]
[1756863970340,5.36245943,208.37,208.33,1.62579393]
[1756863970741,7.26,208.36,208.33,1.62579393]
[1756863971245,7.69,208.36,208.33,1.62579393]
[1756863971438,5.36245943,208.37,208.33,1.62579393]
[1756863971838,7.69,208.36,208.33,1.62579393]
[1756863972743,7.69,208.38,208.33,1.62579393]
[1756863973245,5.36245943,208.39,208.33,1.62579393]
[1756863973246,7.69,208.39,208.33,1.62579393]
[1756863974149,118.58,208.41,208.35,1.62579393]
[1756863974440,7.69,208.4,208.35,1.62579393]
[1756863974640,118.58,208.41,208.35,1.62579393]
[1756863974841,7.69,208.4,208.35,1.62579393]
[1756863975041,118.58,208.41,208.35,1.62579393]
[1756863975247,9.31579393,208.4,208.33,1.62579393]
[1756863976343,7.69,208.43,208.38,1.62579393]
[1756863976843,9.31579393,208.44,208.38,1.62579393]
[1756863977142,7.69,208.41,208.29,1.91]
[1756863977642,7.69,208.39,208.32,1.62579393]
[1756863979444,7.69,208.37,208.26,2.5362937]
[1756863980648,7.69,208.37,208.26,4.4462937]
[1756863982350,7.69,208.37,208.26,1.91]
[1756863983151,2.5362937,208.37,208.23,135.10022715]
[1756863983454,13.05245943,208.36,208.23,2.5362937]
[1756863983651,7.69,208.33,208.21,2.5362937]
[1756863983857,7.69,208.33,208.19,1.91]
[1756863984149,7.69,208.33,208.22,1.91]
[1756863995256,13.05245943,208.33,208.22,1.91]
[1756863996559,5.36245943,208.32,208.22,1.91]
[1756863996754,7.69,208.31,208.22,1.91]
[1756863998263,13.05245943,208.31,208.22,1.91]
[1756863998663,7.69,208.31,208.22,1.91]
[1756863999958,7.69,208.31,208.2,2.5362937]
[1756864000160,5.36245943,208.28,208.15,1.91]
[1756864000366,5.36245943,208.25,208.23,0.03181069]
[1756864000667,13.05245943,208.24,208.13,2.5362937]
[1756864000864,7.69,208.22,208.13,2.5362937]
[1756864001864,7.97335073,208.2,208.13,2.5362937]
[1756864004866,7.97335073,208.2,208.12,1.94]
[1756864011077,7.97335073,208.2,208.09,2.5362937]
[1756864012475,7.97335073,208.2,208.07,1.97]
[1756864012782,7.94,208.17,208.07,1.97]
[1756864013077,0.03363689,208.16,208.07,1.97]
[1756864013385,7.94,208.15,208.07,1.97]
[1756864014178,7.94,208.15,208.03,1.97]
[1756864014378,7.94,208.15,208.02,2.5362937]
[1756864014679,0.03353218,208.11,208.03,1.97]
[1756864015082,7.94,208.1,208.03,1.97]
[1756864016478,7.94,208.1,208.02,2.5362937]
[1756864016684,7.94,208.1,207.99,2.5362937]
[1756864016883,10.4762937,208.1,207.98,1.97]
[1756864017378,7.97093555,208.06,207.98,1.97]
[1756864017775,0.03093555,208.06,207.98,1.97]
[1756864023690,0.03093555,208.06,208.0,1.97]
[1756864024491,7.97093555,208.06,208.0,1.97]
[1756864025885,10.50722925,208.06,207.96,1.97]
[1756864027287,10.50722925,208.06,207.91,1.97]
[1756864027288,7.94,208.02,207.91,1.97]
[1756864027487,7.94,207.99,207.91,1.97]
[1756864027882,0.03499941,207.97,207.91,1.97]
[1756864028491,7.97499941,207.97,207.91,1.97]
[1756864030089,0.03499941,207.97,207.91,1.97]
[1756864033192,7.70499941,207.97,207.91,1.97]
[1756864033996,7.70499941,207.97,207.87,1.97]
[1756864039501,7.67,207.95,207.88,1.62942918]
[1756864040602,9.29942918,207.95,207.87,3.59942918]
[1756864041001,7.67,207.95,207.89,1.62942918]
[1756864041201,0.03499941,207.97,207.93,1.62942918]
[1756864041400,7.67,207.96,207.93,1.62942918]
[1756864042804,7.67,207.96,207.92,1.62942918]
[1756864043105,7.67,207.96,207.9,1.62942918]
[1756864043308,7.67,207.93,207.82,1.97]
[1756864043506,7.67,207.93,207.86,1.62942918]
[1756864043811,0.03420823,207.92,207.86,1.62942918]
[1756864044107,0.03420823,207.92,207.78,1.97]
[1756864044108,7.67,207.9,207.78,1.97]
[1756864044299,1.62942918,207.89,207.78,1.97]
[1756864044502,1.62942918,207.86,207.78,3.59942918]
[1756864044699,1.66502178,207.86,207.78,3.59942918]
[1756864045010,1.66502178,207.86,207.78,1.97]
[1756864047101,0.0355926,207.86,207.78,1.97]
[1756864047308,1.62942918,207.85,207.78,1.97]
[1756864048914,1.62942918,207.85,207.79,1.62942918]
[1756864049712,1.62942918,207.85,207.78,3.59942918]
[1756864050214,1.66502178,207.86,207.78,1.97]
[1756864050410,1.66502178,207.86,207.78,3.59942918]
[1756864056410,9.33502178,207.86,207.78,3.59942918]
[1756864059018,7.7055926,207.86,207.78,3.59942918]
[1756864059325,9.33502178,207.86,207.78,3.59942918]
[1756864060719,9.33502178,207.86,207.78,1.97]
[1756864060920,9.33502178,207.86,207.79,1.62942918]
[1756864064824,7.99,207.83,207.73,1.98]
[1756864065019,7.99,207.81,207.73,1.98]
[1756864065225,7.99,207.77,207.62,1.98]
[1756864065415,1.62942918,207.76,207.69,3.60942918]
[1756864065724,1.62942918,207.76,207.69,1.98]
[1756864065920,7.99,207.77,207.69,1.98]
[1756864066115,1.62942918,207.78,207.71,1.98]
[1756864066116,8.02634031,207.75,207.71,1.98]
[1756864066724,0.03634031,207.75,207.72,1.62942918]
[1756864066924,0.03634031,207.75,207.73,1.98]
[1756864067127,0.03634031,207.75,207.66,29.58]
[1756864067424,8.02634031,207.75,207.71,1.98]
[1756864068823,0.03634031,207.75,207.72,1.62942918]
[1756864069027,0.03634031,207.75,207.72,3.60942918]
[1756864069323,0.03634031,207.75,207.73,1.62942918]
[1756864069523,8.02634031,207.75,207.73,1.62942918]
[1756864070026,8.02634031,207.75,207.72,1.62942918]
[1756864072024,8.02634031,207.75,207.72,3.60942918]
[1756864072025,0.03634031,207.75,207.72,3.60942918]
[1756864072219,8.02634031,207.75,207.72,3.60942918]
[1756864072621,8.02634031,207.75,207.72,1.62942918]
[1756864073125,0.03634031,207.75,207.74,1.62942918]
[1756864073325,0.03634031,207.75,207.74,3.60942918]
[1756864074725,0.03634031,207.75,207.65,1.98]
[1756864074920,0.03634031,207.75,207.74,1.62942918]
[1756864076726,0.03634031,207.75,207.67,4.3335]
[1756864076928,0.03634031,207.75,207.74,1.62942918]
[1756864080532,7.99,207.83,207.74,3.60942918]
[1756864080726,1.62942918,207.86,207.79,1.62942918]
[1756864080727,7.99,207.85,207.79,1.62942918]
[1756864080934,10.02,207.88,207.81,1.62942918]
[1756864080935,7.99,207.87,207.81,1.62942918]
[1756864081633,7.99,207.83,207.77,1.62942918]
[1756864082029,0.03141809,207.82,207.77,1.62942918]
[1756864082227,7.99,207.81,207.77,1.62942918]
[1756864082624,7.99,207.81,207.72,1.98]
[1756864082625,7.99,207.81,207.75,1.62942918]
[1756864083032,7.99,207.81,207.72,1.62942918]
[1756864083033,1.62942918,207.8,207.72,1.62942918]
[1756864083337,7.99,207.79,207.71,1.62942918]
[1756864083732,1.62942918,207.78,207.71,1.62942918]
[1756864083933,8.02469098,207.77,207.71,1.62942918]
[1756864086430,8.02469098,207.77,207.73,1.62942918]
[1756864086835,7.99,207.77,207.73,1.62942918]
[1756864087037,0.03632235,207.77,207.73,1.62942918]
[1756864087337,7.99,207.76,207.73,1.62942918]
[1756864090442,0.03632235,207.77,207.73,1.62942918]
[1756864090640,0.03632235,207.77,207.71,1.62942918]
[1756864090838,7.99,207.76,207.71,1.62942918]
[1756864091042,0.03632235,207.77,207.71,1.62942918]
[1756864091242,7.87,207.76,207.71,1.62942918]
[1756864091741,0.03632235,207.77,207.71,1.62942918]
[1756864092242,7.87,207.76,207.67,2.04]
[1756864092439,7.87,207.76,207.71,1.62942918]
[1756864092640,0.03632235,207.77,207.71,1.62942918]
[1756864092941,7.87,207.76,207.71,1.62942918]
[1756864093841,0.03632235,207.77,207.71,1.62942918]
[1756864094041,7.87,207.76,207.71,1.62942918]
[1756864094738,0.03632235,207.77,207.71,1.62942918]
[1756864094938,7.87,207.76,207.71,1.62942918]
[1756864095139,0.03632235,207.77,207.71,1.62942918]
[1756864095337,7.87,207.76,207.71,1.62942918]
[1756864095741,0.03632235,207.77,207.71,1.62942918]
[1756864096545,7.87,207.76,207.67,2.04]
[1756864096844,9.49942918,207.76,207.69,1.62942918]
[1756864097245,9.49942918,207.76,207.67,2.04]
[1756864097443,9.49942918,207.76,207.68,1.62942918]
[1756864098349,9.49942918,207.76,207.7,1.62942918]
[1756864099443,7.87,207.76,207.67,2.04]
[1756864102243,7.87,207.76,207.69,2.55080279]
[1756864102449,7.87,207.76,207.7,2.02]
[1756864102948,0.03479824,207.75,207.7,2.02]
[1756864103147,0.03479824,207.75,207.69,2.55080279]
[1756864103538,0.03479824,207.75,207.7,2.02]
[1756864103742,0.03479824,207.75,207.69,2.55080279]
[1756864103947,0.03479824,207.75,207.73,2.02]
[1756864104349,0.03479824,207.75,207.72,2.55080279]
[1756864104749,0.03479824,207.75,207.71,2.55080279]
[1756864105749,0.03479824,207.75,207.69,33.12]
[1756864105947,0.03479824,207.75,207.72,2.55080279]
[1756864106348,0.03479824,207.75,207.73,2.02]
[1756864106546,0.03479824,207.75,207.72,2.55080279]
[1756864107553,0.03479824,207.75,207.73,2.02]
[1756864107946,0.03479824,207.75,207.72,2.55080279]
[1756864108349,0.03479824,207.75,207.73,2.02]
[1756864108541,0.03479824,207.75,207.72,2.55080279]
[1756864109052,0.03479824,207.75,207.73,2.02]
[1756864109451,7.87,207.81,207.73,2.02]
[1756864109650,13.23245943,207.85,207.78,2.02]
[1756864109945,13.23245943,207.85,207.77,2.55080279]
[1756864109946,7.87,207.85,207.77,2.55080279]
[1756864110149,5.36245943,207.84,207.77,2.55080279]
[1756864110353,5.36245943,207.82,207.74,2.55080279]
[1756864110551,7.87,207.81,207.74,2.55080279]
[1756864110751,13.23245943,207.81,207.76,0.03128659]
[1756864112453,7.87,207.8,207.76,0.03128659]
[1756864112754,5.36245943,207.81,207.76,0.03128659]
[1756864112953,13.23245943,207.81,207.76,2.05128659]
[1756864113255,13.23245943,207.85,207.77,4.57080279]
[1756864113555,7.87,207.85,207.77,4.57080279]
[1756864113756,7.87,207.85,207.79,0.03120235]
[1756864115850,13.23245943,207.85,207.79,0.03120235]
[1756864116057,7.87,207.82,207.79,0.03120235]
[1756864116258,5.36245943,207.84,207.79,0.03120235]
[1756864116655,7.87,207.83,207.79,0.03120235]
[1756864116855,5.36245943,207.84,207.79,0.03120235]
[1756864117050,7.87,207.83,207.79,0.03120235]
[1756864117356,5.36245943,207.84,207.79,0.03120235]
[1756864117551,7.87,207.83,207.79,0.03120235]
[1756864118057,5.36245943,207.84,207.79,0.03120235]
[1756864118650,7.87,207.83,207.79,0.03120235]
[1756864118848,7.87,207.83,207.79,2.05120235]
[1756864119047,5.36245943,207.87,207.8,2.02]
[1756864119256,7.87,207.86,207.8,2.02]
[1756864119452,7.87,207.86,207.79,0.03120235]
[1756864124167,5.36245943,207.84,207.79,0.03120235]
[1756864124372,7.39,207.83,207.79,0.03120235]
[1756864124666,12.75245943,207.83,207.79,0.03120235]
[1756864125268,7.39,207.81,207.7,4.57080279]
[1756864125468,12.75245943,207.81,207.7,4.57080279]
[1756864126670,7.39,207.77,207.7,4.57080279]
[1756864128070,0.03367102,207.78,207.71,2.05]
[1756864128673,0.03367102,207.78,207.73,2.55080279]
[1756864129177,7.39,207.81,207.74,2.05]
[1756864129477,0.03435503,207.78,207.74,2.05]
[1756864130172,0.03435503,207.78,207.73,2.55080279]
[1756864130578,0.03435503,207.78,207.77,2.05]
[1756864132475,0.03435503,207.78,207.76,2.55080279]
[1756864132670,0.03435503,207.78,207.76,4.60080279]
[1756864132870,0.03435503,207.78,207.76,2.55080279]
[1756864133080,12.75245943,207.89,207.77,2.05]
[1756864133276,7.39,207.89,207.81,2.55080279]
[1756864133680,7.39,207.89,207.81,4.60080279]
[1756864134078,7.39,207.92,207.84,4.60080279]
[1756864134482,7.39,207.92,207.84,2.05]
[1756864135077,7.39,207.92,207.83,0.03479291]
[1756864135278,12.75245943,207.92,207.83,0.03479291]
[1756864135480,5.36245943,207.91,207.83,0.03479291]
[1756864135681,12.75245943,207.91,207.83,0.03479291]
[1756864138985,12.75245943,207.91,207.83,2.5855957]
[1756864139183,7.39,207.91,207.83,2.5855957]
[1756864139384,7.39,207.91,207.84,2.05]
[1756864140987,7.39,207.91,207.85,2.55080279]
[1756864146091,7.39,207.91,207.84,2.05]
[1756864146292,7.39,207.91,207.85,2.55080279]
[1756864147692,7.39,207.91,207.84,2.05]
[1756864147894,7.39,207.91,207.87,4.60080279]
[1756864148192,7.39,207.96,207.9,2.55080279]
[1756864148892,7.39,207.98,207.91,0.03660937]
[1756864161704,7.49,207.99,207.94,1.62868252]
[1756864167105,7.49,207.99,207.92,1.62868252]
[1756864167306,7.49,207.92,207.91,0.03660937]
[1756864167706,7.97,207.92,207.86,1.62868252]
[1756864167906,7.49,207.92,207.84,1.62868252]
[1756864168305,7.49,207.9,207.83,1.62868252]
[1756864168903,0.03327759,207.89,207.83,1.62868252]
[1756864169103,7.49,207.88,207.83,1.62868252]
[1756864169505,0.03327759,207.89,207.83,1.62868252]
[1756864169709,7.49,207.88,207.83,1.62868252]
[1756864169904,7.52327759,207.89,207.83,1.62868252]
[1756864170111,7.52327759,207.89,207.87,1.62868252]
[1756864170505,7.49,207.93,207.87,1.62868252]
[1756864170711,5.36245943,207.99,207.92,1.62868252]
[1756864170914,5.36245943,207.99,207.95,1.62868252]
[1756864171119,7.49,207.97,207.95,1.62868252]
[1756864171409,0.03101227,207.98,207.95,1.62868252]
[1756864171811,7.49,207.97,207.95,1.62868252]
[1756864172215,0.03101227,207.98,207.95,1.62868252]
[1756864172610,7.49,207.97,207.95,1.62868252]
[1756864172909,0.03101227,207.98,207.95,1.62868252]
[1756864173114,7.49,207.97,207.95,1.62868252]
[1756864173312,0.03101227,207.98,207.95,1.62868252]
[1756864174110,5.3934717,207.98,207.95,1.62868252]
[1756864175014,7.49,207.97,207.95,1.62868252]
[1756864175312,5.3934717,207.98,207.93,1.62868252]
[1756864175509,7.49,207.97,207.93,1.62868252]
[1756864175704,7.49,207.96,207.93,1.62868252]
[1756864176110,12.85245943,207.96,207.93,1.62868252]
[1756864176308,7.49,207.95,207.93,1.62868252]
[1756864177114,12.85245943,207.95,207.93,1.62868252]
[1756864177311,5.36245943,207.95,207.93,1.62868252]
[1756864177512,8.07470141,207.98,207.91,1.62868252]
[1756864177513,5.36245943,207.94,207.91,1.62868252]
[1756864177715,7.49,207.93,207.91,1.62868252]
[1756864178712,5.36245943,207.94,207.91,5.33868252]
[1756864178916,5.36245943,207.94,207.93,1.62868252]
[1756864179521,12.85245943,207.95,207.93,1.62868252]
[1756864179911,5.36245943,207.95,207.93,1.62868252]
[1756864180108,7.49,207.94,207.93,1.62868252]
[1756864181212,12.85245943,207.94,207.93,1.62868252]
[1756864182621,8.04368914,207.94,207.89,1.62868252]
[1756864182815,8.04368914,207.94,207.88,1.62868252]
[1756864182816,5.34789804,207.91,207.88,1.62868252]
[1756864183024,7.87,207.9,207.88,1.62868252]
[1756864183223,13.21789804,207.9,207.88,1.62868252]
[1756864184525,5.34789804,207.91,207.88,5.33868252]
[1756864184824,13.25066147,207.92,207.9,1.62868252]
[1756864186123,7.87,207.91,207.9,1.62868252]
[1756864188535,0.03276343,207.92,207.9,1.62868252]
[1756864188729,7.90276343,207.92,207.9,1.62868252]
[1756864189931,0.03276343,207.92,207.91,3.71]
[1756864191134,5.34789804,207.97,207.91,3.71]
[1756864191433,5.34789804,207.97,207.95,1.62868252]
[1756864191735,13.21789804,207.97,207.95,1.62868252]
[1756864192231,7.87,207.96,207.95,1.62868252]
[1756864195531,5.34789804,207.97,207.95,1.62868252]
[1756864195838,5.34789804,207.97,207.95,5.33868252]
[1756864196435,7.87,207.99,207.95,5.33868252]
[1756864196637,5.34789804,208.0,207.97,1.62868252]
[1756864196836,7.87,207.99,207.97,1.62868252]
[1756864197035,6.97658056,207.98,207.94,0.03426688]
[1756864197235,13.21789804,207.95,207.94,0.03426688]
[1756864197631,7.87,207.95,207.94,0.03426688]
[1756864197836,5.34932339,207.95,207.94,0.03426688]
[1756864198140,5.34932339,207.97,207.94,0.03426688]
[1756864198341,7.87,207.95,207.94,0.03426688]
[1756864198540,13.21932339,207.96,207.94,0.03426688]
[1756864200341,7.87,207.96,207.94,0.03426688]
[1756864200732,5.34932339,207.98,207.94,1.6629494]
[1756864200934,5.34932339,207.98,207.95,3.71]
[1756864201135,8.04368914,208.02,207.96,1.62868252]
[1756864201437,10.66767547,208.07,207.89,67.3384]
[1756864201438,7.87,208.07,208.01,1.62868252]
[1756864201634,8.04368914,208.08,208.03,1.62868252]
[1756864201835,7.87,208.07,208.01,1.62868252]
[1756864202033,7.87,208.05,208.02,0.03562659]
[1756864202542,9.67237166,208.08,208.02,0.03562659]
[1756864203341,7.87,208.07,208.02,0.03562659]
[1756864204637,9.67237166,208.08,208.02,0.03562659]
[1756864204841,7.87,208.07,208.02,0.03562659]
[1756864205239,7.87,208.11,208.04,1.62868252]
[1756864205839,7.87,208.12,208.06,1.62868252]
[1756864206036,7.87,208.17,208.1,1.62868252]
[1756864206745,7.87,208.17,208.11,0.03296495]
[1756864206941,7.87,208.17,208.13,1.62868252]
[1756864207136,1.62868252,208.19,208.13,1.62868252]
[1756864207336,7.87,208.21,208.15,1.62868252]
[1756864207638,7.87,208.22,208.17,1.62868252]
[1756864207840,9.67237166,208.23,208.15,1.62868252]
[1756864208045,7.87,208.22,208.16,0.03407785]
[1756864209149,7.87,208.22,208.16,1.66276037]
[1756864209848,8.04368914,208.26,208.16,1.66276037]
[1756864209849,8.04368914,208.26,208.18,1.62868252]
[1756864210041,7.87,208.25,208.16,0.03407785]
[1756864210240,7.87,208.27,208.2,1.62868252]
[1756864210647,7.87,208.27,208.21,0.03255878]
[1756864211240,7.45,208.25,208.21,0.03255878]
[1756864211448,7.45,208.27,208.24,1.62868252]
[1756864211648,7.45,208.35,208.26,1.62868252]
[1756864211947,7.45,208.35,208.29,1.62868252]
[1756864214452,7.45,208.35,208.31,1.62868252]
[1756864214851,7.45,208.37,208.31,1.62868252]
[1756864215249,296.24,208.42,208.35,1.62868252]
[1756864215250,7.45,208.41,208.35,1.62868252]
[1756864215551,7.45,208.41,208.37,1.62868252]
[1756864215749,7.45,208.41,208.35,1.62868252]
[1756864216141,296.24,208.42,208.36,0.03124421]
[1756864216542,7.45,208.41,208.36,0.03124421]
[1756864216954,296.24,208.42,208.36,0.03124421]
[1756864217351,7.45,208.41,208.37,1.62868252]
[1756864217552,9.07868252,208.43,208.37,1.62868252]
[1756864217956,7.45,208.43,208.37,1.62868252]
[1756864218451,7.45,208.43,208.39,1.62868252]
[1756864219257,7.45,208.43,208.4,1.62868252]
[1756864219958,120.28,208.45,208.4,1.62868252]
[1756864220160,7.45,208.44,208.4,1.62868252]
[1756864220357,120.28,208.45,208.4,1.62868252]
[1756864220558,120.28,208.45,208.4,1.65943183]
[1756864220754,1.62868252,208.5,208.4,0.03074931]
[1756864220954,1.62868252,208.5,208.41,1.62868252]
[1756864220955,127.75,208.49,208.41,1.62868252]
[1756864221159,127.75,208.49,208.43,1.62868252]
[1756864221357,127.75,208.49,208.43,1.66020014]
[1756864222260,7.45,208.53,208.47,1.62868252]
[1756864222464,7.45,208.53,208.51,1.62868252]
[1756864223461,7.45,208.6,208.5,3.73076312]
[1756864223660,120.64,208.59,208.5,3.73076312]
[1756864223856,120.64,208.59,208.5,3.7]
[1756864224356,128.11,208.6,208.52,0.0313137]
[1756864224557,7.45,208.64,208.52,3.7313137]
[1756864224959,128.13,208.64,208.52,3.7]
[1756864225157,128.13,208.64,208.56,0.03086479]
[1756864225757,0.0350001,208.62,208.47,3.68]
[1756864225963,7.45,208.61,208.47,3.68]
[1756864226265,295.94,208.66,208.47,3.68]
[1756864226266,7.45,208.59,208.47,3.68]
[1756864226967,0.03073193,208.55,208.47,3.68]
[1756864229965,0.03073193,208.55,208.47,10.51612293]
[1756864230165,0.03073193,208.55,208.48,3.71]
[1756864232871,0.03073193,208.55,208.49,6.83612293]
[1756864233264,0.03073193,208.55,208.5,3.71]
[1756864234062,0.03073193,208.55,208.5,4.19]
[1756864234266,0.03073193,208.55,208.5,3.71]
[1756864234565,0.03073193,208.55,208.52,3.71]
[1756864234773,7.45,208.71,208.55,3.71]
[1756864235272,7.45,208.71,208.6,3.71]
[1756864235968,7.45,208.71,208.63,0.03332067]
[1756864237072,7.45,208.84,208.63,3.74332067]
[1756864237271,7.45,208.82,208.65,3.71]
[1756864238370,7.45,208.82,208.71,0.03087041]
[1756864239471,7.45,208.82,208.72,3.71]
[1756864241374,7.45,208.82,208.71,0.03087041]
[1756864245573,128.87,208.82,208.71,0.03087041]
[1756864246478,7.45,208.82,208.71,3.73087041]
[1756864247077,7.45,208.82,208.71,10.56699334]
[1756864247379,121.34,208.89,208.72,3.7]
[1756864247581,7.45,208.88,208.72,3.7]
[1756864247975,7.45,208.88,208.78,0.03518372]
[1756864248480,7.45,208.94,208.79,3.7]
[1756864248776,7.45,208.94,208.76,73.89442293]
[1756864248777,7.45,208.94,208.82,3.7]
[1756864249275,7.45,208.94,208.84,0.03565272]
[1756864250376,14.41,209.12,208.84,0.03565272]
[1756864250377,7.45,209.11,208.87,3.7]
[1756864250582,14.41,209.15,208.87,3.7]
[1756864250583,7.45,209.09,208.87,3.7]
[1756864250775,8.28298426,209.09,208.87,3.7]
[1756864251077,8.28298426,209.09,208.96,0.03365229]
[1756864251477,8.28298426,209.09,208.87,3.7]
[1756864251675,8.28298426,209.09,209.0,0.03597655]
[1756864253382,7.45,209.07,209.0,0.03597655]
[1756864253878,121.88,209.06,209.0,0.03597655]
[1756864254075,7.45,209.07,209.0,0.03597655]
[1756864256374,7.45,209.12,209.0,3.73597655]
[1756864256777,7.45,209.12,209.0,3.7]
[1756864257179,7.45,209.12,209.04,0.03040528]
[1756864260190,122.2,209.11,209.04,0.03040528]
[1756864260389,7.45,209.1,209.04,0.03040528]
[1756864263087,7.45,209.1,208.91,3.73]
[1756864263088,7.93,209.1,208.91,3.73]
[1756864263287,7.45,209.08,208.91,3.73]
[1756864263490,7.45,209.08,208.84,3.73]
[1756864263491,7.45,209.07,208.84,3.73]
[1756864263788,7.66901748,209.11,208.84,3.73]
[1756864263789,7.45,209.05,208.84,3.73]
[1756864264389,0.03213934,208.97,208.84,3.73]
[1756864264792,49.42,208.99,208.84,3.73]
[1756864265087,0.03623992,208.93,208.84,3.73]
[1756864265694,1.26,209.06,208.89,3.7]
[1756864265891,7.45,209.07,208.93,6.83612293]
[1756864266098,7.45,209.07,208.94,3.67]
[1756864266992,7.45,209.07,208.98,0.03523529]
[1756864267201,6.83612293,209.18,208.98,3.70523529]
[1756864267401,7.45,209.12,208.99,3.67]
[1756864267794,7.45,209.12,209.03,0.03290925]
[1756864272294,124.0,209.21,209.03,0.03290925]
[1756864272295,123.58,209.18,209.04,3.67]
[1756864272503,131.0,209.18,209.04,3.67]
[1756864273003,7.42,209.18,209.09,3.7042309]